bitfinex/quotes_BTCUSD_20241028
["timestamp","ask_amount","ask_price","bid_price","bid_amount"]
[1730120446938,0.86220196,68932.0,68931.0,0.000824]
[1730120447185,0.71513196,68932.0,68931.0,0.000824]
[1730120447608,0.71713196,68932.0,68931.0,0.000824]
[1730120447822,0.86220196,68932.0,68931.0,0.000824]
[1730120448037,0.71713196,68932.0,68931.0,0.000824]
[1730120448498,0.86220196,68932.0,68931.0,0.000824]
[1730120449662,0.71513196,68932.0,68931.0,0.000824]
[1730120453886,0.71413196,68932.0,68931.0,0.000824]
[1730120454541,0.71413196,68932.0,68931.0,0.15232781]
[1730120454747,0.71213196,68932.0,68931.0,0.15132781]
[1730120455165,0.71313196,68932.0,68931.0,0.15132781]
[1730120456542,0.71313196,68932.0,68931.0,0.000824]
[1730120456776,0.85820196,68932.0,68931.0,0.000824]
[1730120457037,0.86020196,68932.0,68931.0,0.000824]
[1730120458411,0.86220196,68932.0,68931.0,0.000824]
[1730120458618,0.86020196,68932.0,68931.0,0.000824]
[1730120459292,0.86220196,68932.0,68931.0,0.000824]
[1730120459522,0.94110196,68932.0,68931.0,0.000824]
[1730120459769,0.94610196,68932.0,68931.0,0.000824]
[1730120460433,0.94610196,68932.0,68931.0,0.00541294]
[1730120461540,0.79403196,68932.0,68931.0,0.00542879]
[1730120461769,0.94410196,68932.0,68931.0,0.00542879]
[1730120462459,0.79903196,68932.0,68931.0,0.00542879]
[1730120462687,0.71513196,68932.0,68931.0,0.00542879]
[1730120463139,0.71713196,68932.0,68931.0,0.00542879]
[1730120463832,0.71513196,68932.0,68931.0,0.00542879]
[1730120464303,0.86220196,68932.0,68931.0,0.00542879]
[1730120464569,0.71513196,68932.0,68931.0,0.00542951]
[1730120464811,0.71713196,68932.0,68931.0,0.00542951]
[1730120465073,0.290112,68939.0,68931.0,0.00542951]
[1730120465312,0.30398112,68970.0,68931.0,0.00542951]
[1730120465313,0.00016,69022.0,68940.0,0.002]
[1730120465520,0.23010728,69060.0,68938.0,0.005]
[1730120465521,0.0182102,69054.0,69029.0,0.149866]
[1730120465740,0.31932166,69034.0,69029.0,0.01460551]
[1730120465981,0.0182102,69054.0,69029.0,0.01250178]
[1730120466218,0.0182102,69054.0,69029.0,0.00960551]
[1730120466430,0.0182102,69054.0,69029.0,0.017]
[1730120466661,0.0182102,69054.0,69029.0,0.01]
[1730120466878,0.0182102,69054.0,69029.0,0.012]
[1730120467093,0.0182102,69054.0,69029.0,0.007]
[1730120467338,0.87046934,69040.0,69029.0,0.007]
[1730120468026,0.87046934,69040.0,69016.0,0.005]
[1730120468027,0.15214781,69030.0,69016.0,0.005]
[1730120468247,0.15214781,69030.0,69010.0,0.002]
[1730120468248,0.87042934,69027.0,69010.0,0.002]
[1730120468485,0.15050381,69026.0,69005.0,0.002]
[1730120468710,0.15050381,69026.0,69013.0,0.002]
[1730120468711,0.87042934,69025.0,69013.0,0.002]
[1730120468943,0.87042934,69018.0,69011.0,0.002]
[1730120469173,0.87042934,69025.0,69017.0,0.002]
[1730120469435,0.87042934,69018.0,69017.0,0.002]
[1730120469655,0.00152239,69030.0,69025.0,0.002]
[1730120469869,0.15050381,69029.0,69028.0,0.002]
[1730120470071,0.15050381,69029.0,69022.0,0.005]
[1730120470311,0.00152239,69030.0,69022.0,0.005]
[1730120470522,0.00152239,69030.0,69022.0,0.01]
[1730120470746,0.00152239,69030.0,69010.0,0.155906]
[1730120470747,0.00152239,69030.0,69014.0,0.005]
[1730120471024,0.00152239,69030.0,69007.0,0.005]
[1730120471261,0.00152239,69030.0,69010.0,0.002]
[1730120471468,0.00152239,69030.0,69011.0,0.011]
[1730120471682,0.023,69029.0,69017.0,0.009]
[1730120471914,0.023,69021.0,69017.0,0.009]
[1730120472144,0.21731099,69022.0,69017.0,0.009]
[1730120472145,0.023,69019.0,69017.0,0.009]
[1730120472368,0.15050381,69018.0,69017.0,0.009]
[1730120472798,0.15050381,69018.0,69011.0,0.011]
[1730120473013,0.21731099,69022.0,69011.0,0.011]
[1730120473231,0.3678148,69022.0,69011.0,0.016]
[1730120473865,0.3678148,69022.0,69017.0,0.002]
[1730120474071,0.3678148,69022.0,69011.0,0.005]
[1730120474308,0.001646,69018.0,69017.0,0.008]
[1730120475212,0.001646,69018.0,69014.0,0.007]
[1730120475487,0.15050381,69029.0,69014.0,0.007]
[1730120475488,0.15050381,69029.0,69016.0,0.002]
[1730120475694,0.21731099,69020.0,69016.0,0.002]
[1730120475914,0.023,69028.0,69016.0,0.002]
[1730120476227,0.21731099,69024.0,69017.0,0.006]
[1730120476681,0.21731099,69024.0,69016.0,0.03]
[1730120477105,0.21731099,69024.0,69016.0,0.037]
[1730120477351,0.21731099,69024.0,69018.0,0.002]
[1730120477617,0.21731099,69024.0,69017.0,0.008]
[1730120477828,0.21731099,69024.0,69016.0,0.037]
[1730120478252,0.21731099,69024.0,69016.0,0.046]
[1730120478486,0.21731099,69024.0,69016.0,0.037]
[1730120478715,0.21731099,69024.0,69016.0,0.03]
[1730120479137,0.21731099,69024.0,69018.0,0.007]
[1730120479561,0.21731099,69024.0,69020.0,0.002]
[1730120480257,0.21731099,69024.0,69018.0,0.007]
[1730120480498,0.21731099,69024.0,69016.0,0.03]
[1730120480499,0.023,69022.0,69016.0,0.03]
[1730120480718,0.15050381,69021.0,69016.0,0.03]
[1730120480951,0.00152239,69030.0,69016.0,0.039]
[1730120481240,0.21731099,69024.0,69016.0,0.03]
[1730120481473,0.17350381,69029.0,69020.0,0.004]
[1730120481708,0.21731099,69025.0,69016.0,0.03]
[1730120481928,0.3678148,69025.0,69016.0,0.03]
[1730120482139,0.3678148,69025.0,69016.0,0.039]
[1730120482393,0.3678148,69025.0,69018.0,0.005]
[1730120483358,0.3678148,69025.0,69016.0,0.039]
[1730120483572,0.3678148,69025.0,69016.0,0.03]
[1730120483829,0.3678148,69025.0,69020.0,0.004]
[1730120484074,0.3678148,69025.0,69016.0,0.007]
[1730120484513,0.3678148,69025.0,69018.0,0.007]
[1730120484729,0.3678148,69025.0,69016.0,0.007]
[1730120485069,0.3678148,69025.0,69020.0,0.004]
[1730120485293,0.15050381,69024.0,69008.0,0.007]
[1730120485501,0.17350381,69024.0,69008.0,0.005]
[1730120485698,0.17350381,69024.0,69020.0,0.003]
[1730120486213,0.17350381,69024.0,69010.0,0.002]
[1730120486467,0.15050381,69024.0,69008.0,0.005]
[1730120486690,0.21731099,69021.0,69011.0,0.005]
[1730120486886,0.21731099,69021.0,69018.0,0.007]
[1730120487005,0.21731099,69021.0,69011.0,0.005]
[1730120487577,0.21731099,69021.0,69020.0,0.001]
[1730120487976,0.15050381,69024.0,69020.0,0.001]
[1730120488203,0.21731099,69023.0,69020.0,0.001]
[1730120488414,0.3678148,69023.0,69020.0,0.001]
[1730120488848,0.15050381,69022.0,69011.0,0.016]
[1730120489084,0.023,69021.0,69011.0,0.02]
[1730120489297,0.15050381,69020.0,69011.0,0.02]
[1730120489553,0.2178,69015.0,69011.0,0.02]
[1730120489776,0.2178,69015.0,68991.0,0.002]
[1730120489777,0.023,69013.0,68991.0,0.007]
[1730120490014,0.023,69011.0,68994.0,0.005]
[1730120490217,0.023,69009.0,68994.0,0.005]
[1730120490460,0.023,69007.0,68994.0,0.005]
[1730120490681,0.50712399,69010.0,69000.0,0.002]
[1730120490682,0.21731099,69010.0,69000.0,0.002]
[1730120490902,0.21731099,69010.0,69007.0,0.002]
[1730120491128,0.21731099,69010.0,69003.0,0.002]
[1730120491629,0.291399,69025.0,69003.0,0.002]
[1730120491630,0.21731099,69014.0,69006.0,0.005]
[1730120491870,0.21731099,69014.0,69011.0,0.005]
[1730120492105,0.21731099,69014.0,69010.0,0.005]
[1730120492106,0.21731099,69014.0,69012.0,0.005]
[1730120492317,0.21731099,69014.0,68997.0,0.144932]
[1730120492318,0.21731099,69014.0,69005.0,0.005]
[1730120492520,0.21731099,69014.0,69005.0,0.01]
[1730120492953,0.1449,69013.0,69005.0,0.01]
[1730120493149,0.289804,69012.0,69000.0,0.012]
[1730120493361,0.15050381,69013.0,69006.0,0.009]
[1730120493580,0.21731099,69007.0,69006.0,0.009]
[1730120493783,0.144907,69010.0,69006.0,0.009]
[1730120493995,0.29540481,69013.0,69006.0,0.009]
[1730120494197,0.15050381,69013.0,69006.0,0.009]
[1730120494634,0.144909,69009.0,69006.0,0.009]
[1730120494843,0.15050381,69008.0,69001.0,0.005]
[1730120495212,0.15050381,69008.0,69005.0,0.002]
[1730120495378,0.21731099,69007.0,69005.0,0.002]
[1730120495581,0.21731099,69014.0,69001.0,0.01]
[1730120495779,0.21731099,69014.0,69003.0,0.005]
[1730120495780,0.21731099,69007.0,69003.0,0.005]
[1730120495980,0.29540581,69013.0,69003.0,0.005]
[1730120496219,0.29540581,69013.0,69006.0,0.001]
[1730120496469,0.29540581,69013.0,69003.0,0.005]
[1730120496883,0.144902,69012.0,69003.0,0.005]
[1730120497259,0.15050381,69011.0,69005.0,0.001644]
[1730120497502,0.21731099,69006.0,69005.0,0.001644]
[1730120497686,0.144914,69006.0,69005.0,0.001644]
[1730120497929,0.29541781,69006.0,69005.0,0.001644]
[1730120498838,0.15050381,69006.0,69005.0,0.001644]
[1730120499087,0.29541781,69006.0,69005.0,0.001644]
[1730120499301,0.29841781,69006.0,69005.0,0.001644]
[1730120499524,0.29941781,69006.0,69005.0,0.001644]
[1730120501298,0.29945781,69006.0,69005.0,0.001644]
[1730120501573,0.15454381,69006.0,69005.0,0.001644]
[1730120501806,0.29945781,69006.0,69005.0,0.001644]
[1730120502242,0.29949781,69006.0,69005.0,0.001644]
[1730120502911,0.29953781,69006.0,69005.0,0.001644]
[1730120503178,0.29953781,69006.0,68985.0,0.04745981]
[1730120503179,0.17762381,69006.0,68985.0,0.04745981]
[1730120503390,0.17762381,69006.0,68981.0,0.005]
[1730120503391,0.144953,68988.0,68981.0,0.005]
[1730120503583,0.289898,68990.0,68981.0,0.005]
[1730120503796,0.144951,68989.0,68981.0,0.005]
[1730120504081,0.289889,68992.0,68981.0,0.005]
[1730120504082,0.144946,68992.0,68981.0,0.005]
[1730120504319,0.21731099,68991.0,68983.0,0.007]
[1730120505219,0.21731099,68991.0,68985.0,0.01]
[1730120505888,0.21731099,68991.0,68983.0,0.007]
[1730120506313,0.21731099,68991.0,68983.0,0.012]
[1730120506797,0.21731099,68991.0,68985.0,0.004]
[1730120507229,0.21731099,68991.0,68983.0,0.01]
[1730120507706,0.21731099,68991.0,68983.0,0.016]
[1730120507927,0.21731099,68991.0,68983.0,0.011]
[1730120508134,0.21731099,68991.0,68985.0,0.003]
[1730120508577,0.21731099,68991.0,68983.0,0.011]
[1730120508785,0.21736099,68991.0,68983.0,0.011]
[1730120508999,0.21736099,68991.0,68983.0,0.016822]
[1730120509226,0.21736099,68991.0,68983.0,0.010822]
[1730120509445,0.21736099,68991.0,68985.0,0.004]
[1730120509911,0.21736099,68991.0,68983.0,0.010822]
[1730120510123,0.21736099,68991.0,68983.0,0.016822]
[1730120510365,0.21736099,68991.0,68984.0,0.04278549]
[1730120510818,0.21736099,68991.0,68985.0,0.004]
[1730120511024,0.21736099,68991.0,68984.0,0.04278549]
[1730120511949,0.21736099,68991.0,68985.0,0.003]
[1730120512405,0.21736099,68991.0,68983.0,0.05688122]
[1730120512613,0.21736099,68991.0,68984.0,0.004]
[1730120513270,0.21736099,68991.0,68983.0,0.005822]
[1730120513483,0.21736099,68991.0,68985.0,0.003]
[1730120513906,5e-05,68991.0,68985.0,0.003]
[1730120514764,5e-05,68991.0,68986.0,0.01284701]
[1730120514978,5e-05,68991.0,68984.0,0.04805922]
[1730120515205,5e-05,68991.0,68984.0,0.05205922]
[1730120515433,5e-05,68991.0,68984.0,0.004]
[1730120515673,5e-05,68991.0,68985.0,0.004]
[1730120515888,5e-05,68991.0,68983.0,0.05088122]
[1730120516108,5e-05,68991.0,68986.0,0.002]
[1730120516577,5e-05,68991.0,68984.0,0.01254701]
[1730120516788,5e-05,68991.0,68983.0,0.005822]
[1730120517010,5e-05,68991.0,68985.0,0.004]
[1730120517231,5e-05,68991.0,68983.0,0.005822]
[1730120517455,5e-05,68991.0,68983.0,0.007822]
[1730120518155,5e-05,68991.0,68985.0,0.003]
[1730120518592,5e-05,68991.0,68986.0,0.003]
[1730120518808,5e-05,68991.0,68984.0,0.002]
[1730120519736,5e-05,68991.0,68985.0,0.003]
[1730120519961,5e-05,68991.0,68986.0,0.003]
[1730120520185,5e-05,68991.0,68985.0,0.003]
[1730120520636,5e-05,68991.0,68990.0,0.017]
[1730120520861,5e-05,68991.0,68990.0,0.04854588]
[1730120521091,0.001696,68991.0,68990.0,0.04854588]
[1730120521800,0.001696,68991.0,68990.0,0.005]
[1730120522032,0.001746,68991.0,68988.0,0.005]
[1730120522257,0.001746,68991.0,68990.0,0.005]
[1730120522463,0.001746,68991.0,68990.0,0.014]
[1730120522703,0.001746,68991.0,68990.0,0.024]
[1730120522918,0.001746,68991.0,68990.0,0.005]
[1730120523615,0.001746,68991.0,68990.0,0.015]
[1730120523819,0.001746,68991.0,68990.0,0.017]
[1730120524046,0.001746,68991.0,68990.0,0.015]
[1730120524275,0.001746,68991.0,68990.0,0.33275365]
[1730120524733,0.001746,68991.0,68990.0,0.37581595]
[1730120524958,0.001746,68991.0,68990.0,0.47634711]
[1730120525189,0.001746,68991.0,68990.0,0.58069334]
[1730120525648,0.001746,68991.0,68990.0,0.58969334]
[1730120525874,0.001746,68991.0,68990.0,0.4024435]
[1730120526130,0.001746,68991.0,68990.0,0.25350381]
[1730120526340,0.001746,68991.0,68990.0,0.034]
[1730120526566,0.001746,68991.0,68990.0,0.021]
[1730120526793,0.001746,68991.0,68990.0,0.034]
[1730120527723,0.001746,68991.0,68990.0,0.01]
[1730120527936,0.001746,68991.0,68987.0,0.005]
[1730120528167,0.001746,68991.0,68985.0,0.002]
[1730120528168,0.001746,68991.0,68988.0,0.005]
[1730120528608,0.001746,68991.0,68990.0,0.009]
[1730120528820,5e-05,68999.0,68990.0,0.009]
[1730120528821,0.144933,68998.0,68990.0,0.009]
[1730120529040,0.21731099,68993.0,68990.0,0.011]
[1730120529254,0.167935,68997.0,68990.0,0.011]
[1730120529718,0.023,68997.0,68987.0,0.01]
[1730120529932,0.023,68997.0,68988.0,0.005]
[1730120530597,5e-05,68999.0,68988.0,0.005]
[1730120530598,0.21731099,68993.0,68988.0,0.005]
[1730120530822,0.289867,68998.0,68988.0,0.005]
[1730120531059,0.023,68997.0,68990.0,0.003]
[1730120531969,0.023,68997.0,68988.0,0.004]
[1730120532210,0.023,68997.0,68988.0,0.008]
[1730120532433,0.023,68997.0,68987.0,0.007]
[1730120532655,0.023,68997.0,68990.0,0.002]
[1730120532869,0.023,68997.0,68990.0,0.004]
[1730120533086,0.023,68997.0,68990.0,0.002]
[1730120533580,0.144934,68997.0,68990.0,0.002]
[1730120533801,0.02305,68999.0,68990.0,0.002]
[1730120534025,0.144938,68995.0,68987.0,0.001646]
[1730120534244,0.167934,68997.0,68988.0,0.004]
[1730120534471,0.02305,68999.0,68988.0,0.008]
[1730120534663,0.02305,68999.0,68987.0,0.001646]
[1730120534664,0.02305,68999.0,68987.0,0.003646]
[1730120535168,0.02305,68999.0,68990.0,0.004]
[1730120535393,0.023,68997.0,68990.0,0.002]
[1730120535616,0.023,68997.0,68987.0,0.001646]
[1730120535840,0.023,68997.0,68988.0,0.004]
[1730120536062,0.023,68997.0,68987.0,0.006646]
[1730120536288,0.023,68997.0,68987.0,0.008646]
[1730120536515,0.02305,68999.0,68990.0,0.007]
[1730120536741,0.16798,68999.0,68990.0,0.007]
[1730120536964,0.02305,68999.0,68990.0,0.007]
[1730120537676,0.02305,68999.0,68987.0,0.009646]
[1730120538114,0.02305,68999.0,68990.0,0.002]
[1730120538551,5e-05,68997.0,68990.0,0.005]
[1730120538768,5e-05,68997.0,68994.0,0.03]
[1730120541229,5e-05,68997.0,68994.0,0.031]
[1730120541451,5e-05,68997.0,68994.0,0.032]
[1730120542820,5e-05,68997.0,68995.0,0.002]
[1730120543024,5e-05,68997.0,68996.0,0.005]
[1730120543240,5e-05,68997.0,68996.0,0.02050831]
[1730120543927,5e-05,68997.0,68996.0,0.02550831]
[1730120544137,5e-05,68997.0,68996.0,0.24586198]
[1730120544356,5e-05,68997.0,68996.0,0.40739812]
[1730120544576,5e-05,68997.0,68996.0,0.40738621]
[1730120545253,5e-05,68997.0,68996.0,0.24782899]
[1730120545692,5e-05,68997.0,68996.0,0.18301212]
[1730120545907,5e-05,68997.0,68996.0,0.19401212]
[1730120546153,5e-05,68997.0,68996.0,0.20301212]
[1730120546816,0.000873,68997.0,68996.0,0.24622422]
[1730120547031,0.000873,68997.0,68996.0,0.24622406]
[1730120547493,0.000873,68997.0,68996.0,0.24623013]
[1730120547711,0.000873,68997.0,68996.0,0.20301212]
[1730120547931,0.000873,68997.0,68996.0,0.24623013]
[1730120549488,0.000873,68997.0,68996.0,0.20301212]
[1730120552000,0.000873,68997.0,68996.0,0.18750381]
[1730120552945,0.000873,68997.0,68996.0,0.02]
[1730120553176,0.145806,68997.0,68996.0,0.02]
[1730120553391,0.168806,68997.0,68996.0,0.02]
[1730120554059,0.168806,68997.0,68996.0,0.011]
[1730120554275,0.171806,68997.0,68996.0,0.011]
[1730120554492,0.171806,68997.0,68988.0,0.001646]
[1730120554493,0.144939,68995.0,68988.0,0.001646]
[1730120556065,0.144939,68995.0,68988.0,0.005646]
[1730120556978,0.144939,68995.0,68988.0,0.008646]
[1730120557422,0.36224699,68996.0,68988.0,0.008646]
[1730120557682,0.144938,68995.0,68988.0,0.008646]
[1730120557897,0.13532313,68995.0,68988.0,0.008646]
[1730120558329,0.13532313,68995.0,68988.0,0.005646]
[1730120558766,0.13532313,68995.0,68988.0,0.008646]
[1730120558985,0.21731099,68996.0,68988.0,0.008646]
[1730120559206,0.144938,68995.0,68988.0,0.008646]
[1730120560102,0.36224799,68996.0,68988.0,0.005646]
[1730120560372,0.36224799,68996.0,68988.0,0.008646]
[1730120560373,0.36226099,68989.0,68988.0,0.008646]
[1730120560578,0.16795,68989.0,68988.0,0.008646]
[1730120561040,0.023,68991.0,68988.0,0.005646]
[1730120561263,0.16795,68989.0,68988.0,0.005646]
[1730120561483,0.16795,68989.0,68988.0,0.008646]
[1730120561669,0.16795,68989.0,68988.0,0.004646]
[1730120561912,0.16795,68989.0,68988.0,0.001646]
[1730120562132,0.16895,68989.0,68988.0,0.001646]
[1730120563225,0.001,68989.0,68988.0,0.001646]
[1730120564136,0.14995,68989.0,68988.0,0.001646]
[1730120564354,0.17295,68989.0,68988.0,0.001646]
[1730120566406,0.028,68989.0,68988.0,0.001646]
[1730120566833,0.17295,68989.0,68988.0,0.001646]
[1730120568654,0.14495,68989.0,68988.0,0.001646]
[1730120570079,0.5917648,68989.0,68988.0,0.001646]
[1730120570294,0.4468148,68989.0,68987.0,0.001646]
[1730120570484,0.31845581,68988.0,68987.0,0.001646]
[1730120570989,0.144961,68984.0,68961.0,0.22231099]
[1730120571235,0.31846481,68984.0,68963.0,0.005]
[1730120571913,0.31846481,68984.0,68965.0,0.01]
[1730120572386,0.31846481,68984.0,68967.0,0.002]
[1730120572618,0.32046481,68984.0,68983.0,0.001822]
[1730120574044,0.32046481,68984.0,68983.0,0.002822]
[1730120575475,0.47096862,68984.0,68983.0,0.002822]
[1730120577590,0.32046481,68984.0,68983.0,0.002822]
[1730120578523,0.32046481,68984.0,68955.0,0.002]
[1730120578524,0.145018,68957.0,68952.0,0.005]
[1730120578735,0.023,68980.0,68951.0,0.22231099]
[1730120578967,0.023,68980.0,68947.0,0.00664]
[1730120578968,0.290012,68963.0,68952.0,0.005]
[1730120579204,0.14502,68956.0,68952.0,0.005]
[1730120579429,0.435051,68958.0,68952.0,0.005]
[1730120579643,0.290014,68962.0,68952.0,0.005]
[1730120579855,0.145017,68958.0,68952.0,0.015]
[1730120580078,0.21731099,68960.0,68952.0,0.015]
[1730120580286,0.21731099,68960.0,68952.0,0.016]
[1730120580559,0.290027,68959.0,68952.0,0.015]
[1730120580781,0.145018,68957.0,68952.0,0.026]
[1730120581031,0.15050381,68979.0,68958.0,0.005]
[1730120581261,0.31294,68980.0,68958.0,0.005]
[1730120581262,0.144997,68967.0,68963.0,0.002]
[1730120581499,0.31294,68980.0,68963.0,0.002]
[1730120581500,0.28995,68978.0,68968.0,0.002]
[1730120581732,0.36229199,68975.0,68970.0,0.002]
[1730120581988,0.21731099,68975.0,68970.0,0.002]
[1730120583155,0.02271769,68981.0,68970.0,0.002]
[1730120583156,0.02271769,68981.0,68973.0,0.002]
[1730120583400,0.02271769,68981.0,68980.0,0.002]
[1730120583637,0.02271769,68981.0,68978.0,0.01]
[1730120583638,0.50719699,68993.0,68982.0,0.002]
[1730120584087,0.144944,68992.0,68984.0,0.002]
[1730120584360,0.21731099,68993.0,68987.0,0.002]
[1730120584823,0.21731099,68993.0,68990.0,0.002]
[1730120585043,0.21731099,68993.0,68991.0,0.002]
[1730120585504,0.001646,68995.0,68991.0,0.002]
[1730120585788,0.001646,68995.0,68994.0,0.005]
[1730120586244,0.001646,68995.0,68994.0,0.007]
[1730120586712,0.001646,68995.0,68994.0,0.005]
[1730120586956,0.001646,68995.0,68992.0,0.005]
[1730120587427,0.001646,68995.0,68994.0,0.004]
[1730120587633,0.001646,68995.0,68994.0,0.007]
[1730120589036,0.001646,68995.0,68994.0,0.004]
[1730120589958,0.001646,68995.0,68993.0,0.03]
[1730120590435,0.14494,68994.0,68993.0,0.03]
[1730120590719,0.14494,68994.0,68992.0,0.001]
[1730120590720,0.167942,68993.0,68992.0,0.001]
[1730120590955,0.31844581,68993.0,68992.0,0.001]
[1730120591185,0.31844581,68993.0,68973.0,0.001823]
[1730120591186,0.023,68992.0,68973.0,0.002823]
[1730120591437,0.023,68990.0,68973.0,0.005823]
[1730120591693,0.144982,68974.0,68973.0,0.000823]
[1730120592591,0.5127968,68974.0,68973.0,0.000823]
[1730120592812,0.29548581,68974.0,68973.0,0.000823]
[1730120593276,0.29748581,68974.0,68973.0,0.000823]
[1730120593764,0.29548581,68974.0,68973.0,0.000823]
[1730120593992,0.29548581,68974.0,68973.0,0.001823]
[1730120594236,0.5157968,68974.0,68973.0,0.002823]
[1730120594467,0.32148581,68974.0,68973.0,0.002823]
[1730120594694,0.43797559,68974.0,68973.0,0.002823]
[1730120594920,0.32148581,68974.0,68973.0,0.002823]
[1730120595328,0.3938148,68974.0,68948.0,0.005]
[1730120595562,0.3938148,68974.0,68947.0,0.00164]
[1730120595563,0.15050381,68973.0,68947.0,0.00164]
[1730120595808,0.145026,68953.0,68947.0,0.00164]
[1730120596031,0.290039,68957.0,68947.0,0.00164]
[1730120596269,0.145022,68955.0,68947.0,0.00164]
[1730120596514,0.145024,68954.0,68947.0,0.00164]
[1730120596745,0.21731099,68956.0,68948.0,0.01]
[1730120596746,0.145023,68955.0,68948.0,0.01]
[1730120597216,0.145023,68955.0,68947.0,0.00164]
[1730120597444,0.21731099,68956.0,68947.0,0.00164]
[1730120597880,0.36233099,68956.0,68947.0,0.00164]
[1730120598360,0.21731099,68956.0,68947.0,0.00164]
[1730120598807,0.21731099,68956.0,68947.0,0.00264]
[1730120599027,0.36233099,68956.0,68947.0,0.00264]
[1730120599249,0.21731099,68956.0,68947.0,0.00164]
[1730120599440,0.36233099,68956.0,68947.0,0.00264]
[1730120599753,0.21731099,68956.0,68947.0,0.00264]
[1730120599975,0.21731099,68956.0,68947.0,0.00364]
[1730120600100,0.13593497,68950.0,68947.0,0.00364]
[1730120601144,0.13593497,68950.0,68947.0,0.00264]
[1730120601376,0.13593497,68950.0,68948.0,0.002]
[1730120601582,5e-05,68956.0,68952.0,0.005]
[1730120601803,0.13598497,68956.0,68949.0,0.005]
[1730120602016,0.13593497,68952.0,68949.0,0.005]
[1730120602881,0.13598497,68956.0,68949.0,0.005]
[1730120603079,5e-05,68950.0,68949.0,0.005]
[1730120603299,5e-05,68950.0,68949.0,0.007]
[1730120603743,5e-05,68950.0,68949.0,0.005]
[1730120605687,0.00105,68950.0,68949.0,0.005]
[1730120606169,0.145036,68948.0,68947.0,0.00164]
[1730120606397,0.13593497,68948.0,68947.0,0.00164]
[1730120607255,5e-05,68950.0,68948.0,0.005]
[1730120608096,5e-05,68950.0,68947.0,0.00464]
[1730120608296,0.13593497,68948.0,68947.0,0.00464]
[1730120608531,0.14953347,68948.0,68947.0,0.00764]
[1730120608766,0.13593497,68948.0,68947.0,0.00464]
[1730120608985,0.13593497,68948.0,68947.0,0.00164]
[1730120609417,0.13593497,68948.0,68947.0,0.00464]
[1730120610526,5e-05,68950.0,68947.0,0.00464]
[1730120611422,0.145082,68950.0,68947.0,0.00764]
[1730120611869,0.145082,68950.0,68947.0,0.00464]
[1730120612498,0.13593497,68948.0,68947.0,0.00764]
[1730120613562,0.28097097,68948.0,68947.0,0.00764]
[1730120613791,0.33335128,68948.0,68947.0,0.00464]
[1730120614480,0.18831528,68948.0,68947.0,0.00464]
[1730120614705,0.13593497,68948.0,68947.0,0.00764]
[1730120615135,0.28097097,68948.0,68947.0,0.00464]
[1730120615605,0.28397097,68948.0,68947.0,0.00464]
[1730120616060,0.28397097,68948.0,68947.0,0.00164]
[1730120616299,0.28697097,68948.0,68947.0,0.00164]
[1730120617657,0.30419542,68948.0,68947.0,0.00164]
[1730120618110,0.28697097,68948.0,68947.0,0.00164]
[1730120618336,0.43747478,68948.0,68947.0,0.00164]
[1730120620983,0.87210975,68948.0,68947.0,0.00164]
[1730120621455,0.87227047,68948.0,68947.0,0.00164]
[1730120621898,0.73325514,68948.0,68947.0,0.00164]
[1730120622345,0.83592361,68948.0,68947.0,0.00264]
[1730120622841,0.98393894,68948.0,68947.0,0.00364]
[1730120624712,0.145062,68936.0,68935.0,0.00164]
[1730120624921,0.71688114,68936.0,68935.0,0.00164]
[1730120626065,0.72288114,68936.0,68935.0,0.00264]
[1730120626301,0.72288114,68936.0,68935.0,0.00364]
[1730120626302,0.72788114,68936.0,68935.0,0.00364]
[1730120626521,0.87838495,68936.0,68935.0,0.00364]
[1730120626946,0.87238495,68936.0,68935.0,0.00264]
[1730120627361,0.88438495,68936.0,68935.0,0.00364]
[1730120627578,0.88443263,68936.0,68935.0,0.00364]
[1730120628455,1.02049564,68936.0,68935.0,0.00264]
[1730120628681,0.87943263,68936.0,68935.0,0.00264]
[1730120628892,0.290149,68931.0,68921.0,0.00164]
[1730120629207,0.023,68935.0,68921.0,0.00164]
[1730120629208,0.51701702,68922.0,68921.0,0.00164]
[1730120629375,0.86672083,68922.0,68921.0,0.00164]
[1730120630765,0.86672083,68922.0,68904.0,0.00082]
[1730120630766,0.145127,68905.0,68904.0,0.00082]
[1730120631017,0.28119001,68905.0,68904.0,0.00082]
[1730120632883,0.13606301,68905.0,68904.0,0.00082]
[1730120633331,0.14006301,68905.0,68904.0,0.00082]
[1730120633566,0.28519001,68905.0,68904.0,0.00082]
[1730120633781,0.28719001,68905.0,68904.0,0.00082]
[1730120634237,0.28519001,68905.0,68904.0,0.00082]
[1730120634474,0.28919001,68905.0,68904.0,0.00082]
[1730120638730,0.43169382,68905.0,68904.0,0.00082]
[1730120639150,0.44369382,68905.0,68904.0,0.00082]
[1730120639607,0.43769382,68905.0,68904.0,0.00082]
[1730120640059,0.44869382,68905.0,68904.0,0.00082]
[1730120640483,0.43169382,68905.0,68904.0,0.00082]
[1730120640735,0.158127,68905.0,68904.0,0.00082]
[1730120640967,0.157127,68905.0,68904.0,0.00082]
[1730120641392,0.012,68905.0,68904.0,0.00082]
[1730120641840,0.157127,68905.0,68904.0,0.00082]
[1730120642093,0.145127,68905.0,68904.0,0.00082]
[1730120642302,0.145125,68906.0,68904.0,0.00082]
[1730120642528,0.017,68905.0,68904.0,0.00082]
[1730120642971,0.009,68905.0,68904.0,0.00082]
[1730120643418,0.015,68905.0,68904.0,0.00082]